[Event "January 9 Late 2024"]
[Site "https://www.chess.com"]
[Date "2024.01.09"]
[Round "9"]
[White "Tulchynskyi, Feliks"]
[Black "Avalos Parra, Joao"]
[Result "1-0"]
[Board "88"]
[TimeControl "180+1"]
[WhiteFideId "34127895"]
[BlackFideId "3402541"]
[WhiteElo "2565"]
[BlackElo "2418"]
[WhiteTeam "UKR"]
[BlackTeam "CHI"]
[WhiteClock "0:00:18"]
[BlackClock "0:00:12"]

1. Nf3 {[%clk 0:02:54]}  d5 {[%clk 0:02:59]} 2. b3 {[%clk 0:02:48]}  Nf6 {[%clk 0:02:43]} 3. Bb2 {[%clk 0:02:49]}  Bf5 {[%clk 0:02:43]} 4. g3 {[%clk 0:02:47]}  h6 {[%clk 0:02:43]} 5. Bg2 {[%clk 0:02:47]}  e6 {[%clk 0:02:43]} 6. O-O {[%clk 0:02:47]}  Nbd7 {[%clk 0:02:42]} 7. c4 {[%clk 0:02:47]}  Bd6 {[%clk 0:02:42]} 8. d4 {[%clk 0:02:46]}  O-O {[%clk 0:02:41]} 9. c5 {[%clk 0:02:38]}  Be7 {[%clk 0:02:41]} 10. b4 {[%clk 0:02:35]}  c6 {[%clk 0:02:39]} 11. Nh4 {[%clk 0:02:32]}  Bh7 {[%clk 0:02:39]} 12. f4 {[%clk 0:02:31]}  Be4 {[%clk 0:02:35]} 13. Nf3 {[%clk 0:02:30]}  a5 {[%clk 0:02:29]} 14. a3 {[%clk 0:02:25]}  b6 {[%clk 0:02:30]} 15. Nc3 {[%clk 0:02:22]}  bxc5 {[%clk 0:02:26]} 16. bxc5 {[%clk 0:02:21]}  Qb8 {[%clk 0:02:25]} 17. Qd2 {[%clk 0:02:16]}  Bh7 {[%clk 0:02:19]} 18. Ne5 {[%clk 0:02:14]}  Rc8 {[%clk 0:02:08]} 19. Rae1 {[%clk 0:02:03]}  Qb7 {[%clk 0:01:58]} 20. e3 {[%clk 0:01:52]}  Rab8 {[%clk 0:01:57]} 21. Ba1 {[%clk 0:01:52]}  Qb3 {[%clk 0:01:52]} 22. a4 {[%clk 0:01:52]}  Nxe5 {[%clk 0:01:30]} 23. fxe5 {[%clk 0:01:50]}  Nd7 {[%clk 0:01:29]} 24. Rf2 {[%clk 0:01:41]}  Rf8 {[%clk 0:01:07]} 25. Ref1 {[%clk 0:01:29]}  Qc4 {[%clk 0:01:04]} 26. Bf3 {[%clk 0:01:23]}  Qa6 {[%clk 0:00:59]} 27. Be2 {[%clk 0:01:21]}  Qb7 {[%clk 0:00:57]} 28. Bh5 {[%clk 0:01:16]}  f6 {[%clk 0:00:48]} 29. Bg4 {[%clk 0:01:13]}  fxe5 {[%clk 0:00:39]} 30. Bxe6+ {[%clk 0:01:11]}  Kh8 {[%clk 0:00:39]} 31. Rxf8+ {[%clk 0:01:06]}  Rxf8 {[%clk 0:00:38]} 32. Rxf8+ {[%clk 0:01:03]}  Nxf8 {[%clk 0:00:34]} 33. Bg4 {[%clk 0:01:03]}  Qb4 {[%clk 0:00:20]} 34. Bd1 {[%clk 0:00:49]}  exd4 {[%clk 0:00:16]} 35. exd4 {[%clk 0:00:49]}  Bg5 {[%clk 0:00:16]} 36. Qf2 {[%clk 0:00:42]}  Ne6 {[%clk 0:00:14]} 37. h4 {[%clk 0:00:38]}  Bf6 {[%clk 0:00:13]} 38. Ne2 {[%clk 0:00:37]}  Be4 {[%clk 0:00:11]} 39. Bc3 {[%clk 0:00:36]}  Qb8 {[%clk 0:00:11]} 40. Bxa5 {[%clk 0:00:34]}  Qa8 {[%clk 0:00:11]} 41. Bc3 {[%clk 0:00:34]}  Qe8 {[%clk 0:00:11]} 42. a5 {[%clk 0:00:33]}  Nc7 {[%clk 0:00:11]} 43. Nf4 {[%clk 0:00:32]}  Nb5 {[%clk 0:00:11]} 44. Bb2 {[%clk 0:00:31]}  Qa8 {[%clk 0:00:11]} 45. Qd2 {[%clk 0:00:30]}  Kg8 {[%clk 0:00:10]} 46. Be2 {[%clk 0:00:29]}  Nc7 {[%clk 0:00:08]} 47. Qb4 {[%clk 0:00:29]}  g5 {[%clk 0:00:06]} 48. Nh5 {[%clk 0:00:27]}  Be7 {[%clk 0:00:05]} 49. Qb6 {[%clk 0:00:27]}  Ne6 {[%clk 0:00:05]} 50. a6 {[%clk 0:00:26]}  Bd8 {[%clk 0:00:05]} 51. Qb7 {[%clk 0:00:25]}  Nc7 {[%clk 0:00:06]} 52. Qxa8 {[%clk 0:00:23]}  Nxa8 {[%clk 0:00:05]} 53. hxg5 {[%clk 0:00:24]}  hxg5 {[%clk 0:00:05]} 54. Bg4 {[%clk 0:00:21]}  Bd3 {[%clk 0:00:04]} 55. a7 {[%clk 0:00:21]}  Ba6 {[%clk 0:00:03]} 56. Bd7 {[%clk 0:00:20]}  Bb7 {[%clk 0:00:03]} 57. g4 {[%clk 0:00:20]}  Kf7 {[%clk 0:00:04]} 58. Bc1 {[%clk 0:00:20]}  Ke7 {[%clk 0:00:04]} 59. Bf5 {[%clk 0:00:20]}  Ke8 {[%clk 0:00:03]} 60. Ng7+ {[%clk 0:00:20]}  Kf7 {[%clk 0:00:03]} 61. Ne6 {[%clk 0:00:20]}  Bf6 {[%clk 0:00:04]} 62. Nxg5+ {[%clk 0:00:19]}  Ke7 {[%clk 0:00:03]} 63. Nf3 {[%clk 0:00:19]}  Nc7 {[%clk 0:00:04]} 64. g5 {[%clk 0:00:19]}  Bg7 {[%clk 0:00:04]} 65. Bf4 {[%clk 0:00:19]}  Nb5 {[%clk 0:00:04]} 66. Be5 {[%clk 0:00:19]}  Bf8 {[%clk 0:00:04]} 67. g6 {[%clk 0:00:18]}  Nxa7 {[%clk 0:00:04]} 68. g7 {[%clk 0:00:18]}  Bxg7 {[%clk 0:00:05]} 69. Bxg7 {[%clk 0:00:19]}  Nb5 {[%clk 0:00:05]} 70. Be5 {[%clk 0:00:20]}  Nc3 {[%clk 0:00:06]} 71. Kf2 {[%clk 0:00:20]}  Ba6 {[%clk 0:00:06]} 72. Ke3 {[%clk 0:00:20]}  Bc4 {[%clk 0:00:06]} 73. Bf4 {[%clk 0:00:20]}  Nd1+ {[%clk 0:00:07]} 74. Kd2 {[%clk 0:00:20]}  Nf2 {[%clk 0:00:07]} 75. Ne5 {[%clk 0:00:20]}  Bb5 {[%clk 0:00:07]} 76. Bg5+ {[%clk 0:00:18]}  Ke8 {[%clk 0:00:06]} 77. Bg6+ {[%clk 0:00:18]}  Kf8 {[%clk 0:00:07]} 78. Nd7+ {[%clk 0:00:18]}  Kg7 {[%clk 0:00:08]} 79. Bf5 {[%clk 0:00:17]}  Kf7 {[%clk 0:00:08]} 80. Ne5+ {[%clk 0:00:17]}  Kg7 {[%clk 0:00:08]} 81. Bd7 {[%clk 0:00:17]}  Ne4+ {[%clk 0:00:07]} 82. Ke3 {[%clk 0:00:17]}  Nxg5 {[%clk 0:00:08]} 83. Bxc6 {[%clk 0:00:18]}  Bc4 {[%clk 0:00:07]} 84. Nxc4 {[%clk 0:00:16]}  dxc4 {[%clk 0:00:08]} 85. Bd5 {[%clk 0:00:16]}  Kf6 {[%clk 0:00:09]} 86. Bxc4 {[%clk 0:00:16]}  Ke7 {[%clk 0:00:10]} 87. d5 {[%clk 0:00:16]}  Kd7 {[%clk 0:00:10]} 88. Bb5+ {[%clk 0:00:16]}  Kc7 {[%clk 0:00:10]} 89. d6+ {[%clk 0:00:16]}  Kd8 {[%clk 0:00:10]} 90. Kd4 {[%clk 0:00:16]}  Ne6+ {[%clk 0:00:11]} 91. Kd5 {[%clk 0:00:16]}  Nf4+ {[%clk 0:00:12]} 92. Ke5 {[%clk 0:00:16]}  Ng6+ {[%clk 0:00:11]} 93. Kf5 {[%clk 0:00:17]}  Nf8 {[%clk 0:00:11]} 94. c6 {[%clk 0:00:16]}  Nh7 {[%clk 0:00:11]} 95. c7+ {[%clk 0:00:16]}  Kc8 {[%clk 0:00:11]} 96. Ba6+ {[%clk 0:00:17]}  Kd7 {[%clk 0:00:12]} 97. c8=Q+ {[%clk 0:00:18]}  Kxd6 {[%clk 0:00:13]} 98. Qe6+ {[%clk 0:00:18]}  Kc7 {[%clk 0:00:12]} 99. Qe7+ {[%clk 0:00:18]} 1-0

[Event "January 9 Late 2024"]
[Site "https://www.chess.com"]
[Date "2024.01.09"]
[Round "9"]
[White "Bogaudinov, Rushan"]
[Black "Przybylski, Wojciech"]
[Result "0-1"]
[Board "89"]
[TimeControl "180+1"]
[WhiteFideId "4129288"]
[BlackFideId "1117599"]
[WhiteElo "2409"]
[BlackElo "2560"]
[WhiteTeam "RUS"]
[BlackTeam "POL"]
[WhiteClock "0:00:13"]
[BlackClock "0:00:06"]

1. e4 {[%clk 0:03:00]}  c5 {[%clk 0:02:51]} 2. Nf3 {[%clk 0:03:00]}  d6 {[%clk 0:02:48]} 3. d4 {[%clk 0:02:59]}  cxd4 {[%clk 0:02:49]} 4. Nxd4 {[%clk 0:03:00]}  Nf6 {[%clk 0:02:49]} 5. Bd3 {[%clk 0:02:59]}  e5 {[%clk 0:02:47]} 6. Ne2 {[%clk 0:02:59]}  Be7 {[%clk 0:02:46]} 7. O-O {[%clk 0:02:58]}  O-O {[%clk 0:02:46]} 8. f4 {[%clk 0:02:58]}  Nc6 {[%clk 0:02:45]} 9. Ng3 {[%clk 0:02:53]}  Qb6+ {[%clk 0:02:38]} 10. Kh1 {[%clk 0:02:52]}  Ng4 {[%clk 0:02:37]} 11. Qe1 {[%clk 0:02:45]}  exf4 {[%clk 0:02:31]} 12. Rxf4 {[%clk 0:02:26]}  Nce5 {[%clk 0:02:30]} 13. Nc3 {[%clk 0:02:23]}  Bg5 {[%clk 0:02:27]} 14. Nd5 {[%clk 0:02:20]}  Qd8 {[%clk 0:02:26]} 15. Rf1 {[%clk 0:02:09]}  Be6 {[%clk 0:02:22]} 16. Nf5 {[%clk 0:01:57]}  Bxd5 {[%clk 0:02:07]} 17. exd5 {[%clk 0:01:58]}  Nxd3 {[%clk 0:02:07]} 18. cxd3 {[%clk 0:01:57]}  Bxc1 {[%clk 0:02:02]} 19. Rxc1 {[%clk 0:01:56]}  Ne5 {[%clk 0:01:41]} 20. Qg3 {[%clk 0:01:55]}  g6 {[%clk 0:01:37]} 21. d4 {[%clk 0:01:47]}  Nd7 {[%clk 0:01:35]} 22. Nxd6 {[%clk 0:01:34]}  Nf6 {[%clk 0:01:30]} 23. Qe5 {[%clk 0:01:27]}  Ng4 {[%clk 0:01:21]} 24. Qf4 {[%clk 0:01:25]}  h5 {[%clk 0:01:12]} 25. h3 {[%clk 0:01:21]}  Ne3 {[%clk 0:00:49]} 26. Nxb7 {[%clk 0:01:09]}  Qxd5 {[%clk 0:00:24]} 27. Qxe3 {[%clk 0:01:07]}  Qxb7 {[%clk 0:00:23]} 28. b3 {[%clk 0:01:06]}  Rfe8 {[%clk 0:00:23]} 29. Qd3 {[%clk 0:01:02]}  Rad8 {[%clk 0:00:21]} 30. Rcd1 {[%clk 0:00:56]}  Rd5 {[%clk 0:00:20]} 31. Rfe1 {[%clk 0:00:48]}  Red8 {[%clk 0:00:20]} 32. Re4 {[%clk 0:00:47]}  Rg5 {[%clk 0:00:18]} 33. Rde1 {[%clk 0:00:39]}  Kg7 {[%clk 0:00:18]} 34. Qe3 {[%clk 0:00:34]}  Rgd5 {[%clk 0:00:14]} 35. Re7 {[%clk 0:00:32]}  Qc6 {[%clk 0:00:12]} 36. Rf1 {[%clk 0:00:29]}  Rf8 {[%clk 0:00:11]} 37. Qe4 {[%clk 0:00:24]}  Qd6 {[%clk 0:00:10]} 38. Rf4 {[%clk 0:00:21]}  Rg5 {[%clk 0:00:09]} 39. Re5 {[%clk 0:00:19]}  Rxe5 {[%clk 0:00:09]} 40. dxe5 {[%clk 0:00:19]}  Qd1+ {[%clk 0:00:08]} 41. Kh2 {[%clk 0:00:20]}  Qd7 {[%clk 0:00:08]} 42. Rf6 {[%clk 0:00:20]}  Re8 {[%clk 0:00:08]} 43. Qf4 {[%clk 0:00:19]}  Re7 {[%clk 0:00:07]} 44. h4 {[%clk 0:00:19]}  Qe8 {[%clk 0:00:07]} 45. Qd4 {[%clk 0:00:16]}  Rxe5 {[%clk 0:00:07]} 46. Rd6 {[%clk 0:00:15]}  Kh7 {[%clk 0:00:06]} 47. Rd8 {[%clk 0:00:15]}  Qe7 {[%clk 0:00:06]} 48. Rd7 {[%clk 0:00:15]}  Qxh4+ {[%clk 0:00:06]} 49. Kg1 {[%clk 0:00:13]}  Re1# {[%clk 0:00:06]} 0-1

[Event "January 9 Late 2024"]
[Site "https://www.chess.com"]
[Date "2024.01.09"]
[Round "9"]
[White "Rees, Ioan"]
[Black "Erzhanov, Arman"]
[Result "1-0"]
[Board "91"]
[TimeControl "180+1"]
[WhiteFideId "1801236"]
[BlackFideId "4138821"]
[WhiteElo "2402"]
[BlackElo "2548"]
[WhiteTeam "WLS"]
[BlackTeam "KAZ"]
[WhiteClock "0:00:09"]
[BlackClock "0:00:00"]

1. Nf3 {[%clk 0:03:00]}  c5 {[%clk 0:02:59]} 2. c3 {[%clk 0:02:58]}  Nc6 {[%clk 0:02:59]} 3. d4 {[%clk 0:02:58]}  cxd4 {[%clk 0:02:59]} 4. cxd4 {[%clk 0:02:58]}  d5 {[%clk 0:02:59]} 5. Nc3 {[%clk 0:02:56]}  Nf6 {[%clk 0:02:59]} 6. Bf4 {[%clk 0:02:56]}  a6 {[%clk 0:02:59]} 7. Ne5 {[%clk 0:02:55]}  e6 {[%clk 0:02:54]} 8. e3 {[%clk 0:02:51]}  Qb6 {[%clk 0:02:52]} 9. Qc2 {[%clk 0:02:25]}  Nxe5 {[%clk 0:02:44]} 10. Bxe5 {[%clk 0:02:23]}  Bd7 {[%clk 0:02:36]} 11. Bd3 {[%clk 0:02:22]}  Rc8 {[%clk 0:02:34]} 12. O-O {[%clk 0:02:22]}  Be7 {[%clk 0:02:30]} 13. Rfc1 {[%clk 0:02:21]}  g6 {[%clk 0:02:27]} 14. Qe2 {[%clk 0:02:16]}  O-O {[%clk 0:02:26]} 15. h3 {[%clk 0:02:15]}  Bc6 {[%clk 0:02:13]} 16. Rc2 {[%clk 0:02:13]}  Nd7 {[%clk 0:02:07]} 17. Bf4 {[%clk 0:02:10]}  Qa5 {[%clk 0:01:28]} 18. Rac1 {[%clk 0:02:09]}  Nb6 {[%clk 0:01:28]} 19. g4 {[%clk 0:01:54]}  Na4 {[%clk 0:01:24]} 20. Nxa4 {[%clk 0:01:49]}  Qxa4 {[%clk 0:01:25]} 21. b3 {[%clk 0:01:50]}  Qa5 {[%clk 0:01:24]} 22. Bg3 {[%clk 0:01:38]}  Ba3 {[%clk 0:01:24]} 23. Rf1 {[%clk 0:01:35]}  Bd7 {[%clk 0:01:24]} 24. h4 {[%clk 0:01:33]}  Rxc2 {[%clk 0:01:23]} 25. Bxc2 {[%clk 0:01:31]}  Rc8 {[%clk 0:01:22]} 26. h5 {[%clk 0:01:31]}  Qc3 {[%clk 0:01:21]} 27. Bd3 {[%clk 0:01:30]}  Qb2 {[%clk 0:01:11]} 28. Qf3 {[%clk 0:01:26]}  Be7 {[%clk 0:01:05]} 29. Bb1 {[%clk 0:01:18]}  Rc1 {[%clk 0:01:03]} 30. Bd3 {[%clk 0:00:59]}  Rxf1+ {[%clk 0:01:01]} 31. Bxf1 {[%clk 0:01:00]}  Qxa2 {[%clk 0:01:00]} 32. Qf4 {[%clk 0:01:00]}  Qxb3 {[%clk 0:00:39]} 33. Qb8+ {[%clk 0:00:57]}  Kg7 {[%clk 0:00:38]} 34. Bf4 {[%clk 0:00:36]}  g5 {[%clk 0:00:25]} 35. Be5+ {[%clk 0:00:24]}  f6 {[%clk 0:00:23]} 36. Bd6 {[%clk 0:00:25]}  Kf7 {[%clk 0:00:16]} 37. Bxe7 {[%clk 0:00:23]}  Kxe7 {[%clk 0:00:17]} 38. Qg8 {[%clk 0:00:24]}  Qd1 {[%clk 0:00:17]} 39. Qxh7+ {[%clk 0:00:20]}  Kd6 {[%clk 0:00:18]} 40. Qd3 {[%clk 0:00:19]}  Qxg4+ {[%clk 0:00:17]} 41. Bg2 {[%clk 0:00:17]}  Qxh5 {[%clk 0:00:17]} 42. Qa3+ {[%clk 0:00:18]}  Kc7 {[%clk 0:00:17]} 43. Qc5+ {[%clk 0:00:18]}  Bc6 {[%clk 0:00:17]} 44. Qe7+ {[%clk 0:00:18]}  Bd7 {[%clk 0:00:17]} 45. Qc5+ {[%clk 0:00:18]}  Kd8 {[%clk 0:00:17]} 46. Qf8+ {[%clk 0:00:18]}  Qe8 {[%clk 0:00:17]} 47. Qxf6+ {[%clk 0:00:18]}  Qe7 {[%clk 0:00:18]} 48. Qh8+ {[%clk 0:00:18]}  Kc7 {[%clk 0:00:17]} 49. Qe5+ {[%clk 0:00:18]}  Kb6 {[%clk 0:00:17]} 50. Qb8 {[%clk 0:00:17]}  Bc6 {[%clk 0:00:15]} 51. Qc8 {[%clk 0:00:16]}  Ka7 {[%clk 0:00:11]} 52. Qg8 {[%clk 0:00:14]}  Qf6 {[%clk 0:00:10]} 53. Bh3 {[%clk 0:00:13]}  e5 {[%clk 0:00:09]} 54. dxe5 {[%clk 0:00:11]}  Qxe5 {[%clk 0:00:10]} 55. Qh7 {[%clk 0:00:10]}  d4 {[%clk 0:00:00]} 56. Bd7 {[%clk 0:00:09]} 1-0

[Event "January 9 Late 2024"]
[Site "https://www.chess.com"]
[Date "2024.01.09"]
[Round "9"]
[White "Ferreira, Vitor Hugo Vieira"]
[Black "Lemos, Dawton Almino"]
[Result "1-0"]
[Board "94"]
[TimeControl "180+1"]
[WhiteFideId "2119765"]
[BlackFideId "2146797"]
[WhiteElo "2543"]
[BlackElo "2372"]
[WhiteTeam "BRA"]
[BlackTeam "BRA"]
[WhiteClock "0:01:49"]
[BlackClock "0:00:05"]

1. d4 {[%clk 0:03:00]}  Nf6 {[%clk 0:02:54]} 2. c4 {[%clk 0:03:00]}  e6 {[%clk 0:02:48]} 3. Nf3 {[%clk 0:02:59]}  d5 {[%clk 0:02:41]} 4. Nc3 {[%clk 0:02:59]}  Be7 {[%clk 0:02:40]} 5. Bf4 {[%clk 0:02:58]}  O-O {[%clk 0:02:30]} 6. e3 {[%clk 0:02:48]}  Bd6 {[%clk 0:01:54]} 7. Ne5 {[%clk 0:02:42]}  Nbd7 {[%clk 0:01:44]} 8. Qc2 {[%clk 0:02:17]}  dxc4 {[%clk 0:01:29]} 9. Bxc4 {[%clk 0:02:14]}  Qe7 {[%clk 0:01:24]} 10. O-O-O {[%clk 0:02:02]}  a6 {[%clk 0:01:08]} 11. g4 {[%clk 0:02:00]}  c5 {[%clk 0:00:56]} 12. g5 {[%clk 0:01:52]}  Nh5 {[%clk 0:00:45]} 13. Nxd7 {[%clk 0:01:50]}  Bxf4 {[%clk 0:00:05]} 14. Nxf8 {[%clk 0:01:49]} 1-0

[Event "January 9 Late 2024"]
[Site "https://www.chess.com"]
[Date "2024.01.10"]
[Round "9"]
[White "Saha, Ananda"]
[Black "Hambleton, Aman"]
[Result "0-1"]
[Board "98"]
[TimeControl "180+1"]
[WhiteFideId "2619644"]
[BlackFideId "2606577"]
[WhiteElo "2501"]
[BlackElo "2687"]
[WhiteTeam "CAN"]
[BlackTeam "CAN"]
[WhiteClock "0:00:06"]
[BlackClock "0:00:05"]

1. e4 {[%clk 0:03:00]}  b6 {[%clk 0:02:58]} 2. d4 {[%clk 0:03:00]}  Bb7 {[%clk 0:02:58]} 3. Bd3 {[%clk 0:03:00]}  e6 {[%clk 0:02:57]} 4. Nf3 {[%clk 0:02:59]}  d5 {[%clk 0:02:56]} 5. e5 {[%clk 0:02:59]}  Ba6 {[%clk 0:02:55]} 6. Bxa6 {[%clk 0:02:48]}  Nxa6 {[%clk 0:02:56]} 7. O-O {[%clk 0:02:44]}  Qd7 {[%clk 0:02:54]} 8. Nbd2 {[%clk 0:02:35]}  c5 {[%clk 0:02:51]} 9. Re1 {[%clk 0:02:27]}  Ne7 {[%clk 0:02:49]} 10. c3 {[%clk 0:02:21]}  Rc8 {[%clk 0:02:28]} 11. a3 {[%clk 0:02:20]}  c4 {[%clk 0:02:28]} 12. Nf1 {[%clk 0:02:11]}  h6 {[%clk 0:02:16]} 13. Ng3 {[%clk 0:02:02]}  g6 {[%clk 0:02:16]} 14. h4 {[%clk 0:01:45]}  Nf5 {[%clk 0:02:13]} 15. Bf4 {[%clk 0:01:40]}  Nc7 {[%clk 0:02:09]} 16. Nf1 {[%clk 0:01:34]}  Be7 {[%clk 0:02:03]} 17. g3 {[%clk 0:01:33]}  b5 {[%clk 0:02:00]} 18. N1h2 {[%clk 0:01:27]}  h5 {[%clk 0:01:55]} 19. Nf1 {[%clk 0:01:25]}  a5 {[%clk 0:01:51]} 20. Qd2 {[%clk 0:01:24]}  Kf8 {[%clk 0:01:34]} 21. Bg5 {[%clk 0:01:20]}  Kg7 {[%clk 0:01:33]} 22. Ne3 {[%clk 0:01:16]}  Rb8 {[%clk 0:01:27]} 23. Nxf5+ {[%clk 0:01:15]}  exf5 {[%clk 0:01:26]} 24. e6 {[%clk 0:01:12]}  Nxe6 {[%clk 0:01:23]} 25. Ne5 {[%clk 0:01:12]}  Bxg5 {[%clk 0:01:14]} 26. hxg5 {[%clk 0:01:12]}  Qd8 {[%clk 0:00:57]} 27. Nc6 {[%clk 0:01:04]}  Qxg5 {[%clk 0:00:56]} 28. Qe2 {[%clk 0:00:36]}  Ra8 {[%clk 0:00:21]} 29. Qe5+ {[%clk 0:00:34]}  Qf6 {[%clk 0:00:21]} 30. Qxd5 {[%clk 0:00:31]}  h4 {[%clk 0:00:22]} 31. Qe5 {[%clk 0:00:20]}  hxg3 {[%clk 0:00:21]} 32. fxg3 {[%clk 0:00:21]}  Ng5 {[%clk 0:00:09]} 33. Kg2 {[%clk 0:00:16]}  Ra6 {[%clk 0:00:03]} 34. Qxf6+ {[%clk 0:00:10]}  Kxf6 {[%clk 0:00:04]} 35. Ne7 {[%clk 0:00:08]}  Rd8 {[%clk 0:00:02]} 36. Re5 {[%clk 0:00:08]}  Ne4 {[%clk 0:00:01]} 37. Nd5+ {[%clk 0:00:08]}  Kg7 {[%clk 0:00:01]} 38. Nf4 {[%clk 0:00:06]}  b4 {[%clk 0:00:01]} 39. axb4 {[%clk 0:00:06]}  g5 {[%clk 0:00:02]} 40. Nh3 {[%clk 0:00:02]}  f6 {[%clk 0:00:02]} 41. Rxf5 {[%clk 0:00:02]}  Nd6 {[%clk 0:00:02]} 42. g4 {[%clk 0:00:03]}  Nxf5 {[%clk 0:00:02]} 43. gxf5 {[%clk 0:00:04]}  Rda8 {[%clk 0:00:02]} 44. b5 {[%clk 0:00:04]}  Rb6 {[%clk 0:00:02]} 45. Kf3 {[%clk 0:00:04]}  Rxb5 {[%clk 0:00:03]} 46. Ra2 {[%clk 0:00:04]}  Rxf5+ {[%clk 0:00:03]} 47. Kg4 {[%clk 0:00:04]}  Rb5 {[%clk 0:00:03]} 48. Nf2 {[%clk 0:00:04]}  Kg6 {[%clk 0:00:04]} 49. Kf3 {[%clk 0:00:04]}  Rab8 {[%clk 0:00:03]} 50. Ne4 {[%clk 0:00:04]}  R8b6 {[%clk 0:00:02]} 51. Ra4 {[%clk 0:00:04]}  f5 {[%clk 0:00:02]} 52. Nc5 {[%clk 0:00:04]}  f4 {[%clk 0:00:02]} 53. Rxc4 {[%clk 0:00:05]}  Kf5 {[%clk 0:00:02]} 54. Ra4 {[%clk 0:00:04]}  g4+ {[%clk 0:00:03]} 55. Ke2 {[%clk 0:00:04]}  Rxb2+ {[%clk 0:00:04]} 56. Kd3 {[%clk 0:00:04]}  g3 {[%clk 0:00:04]} 57. Rxa5 {[%clk 0:00:04]}  Kg4 {[%clk 0:00:04]} 58. Ne4 {[%clk 0:00:04]}  Kf3 {[%clk 0:00:03]} 59. Rg5 {[%clk 0:00:02]}  g2 {[%clk 0:00:02]} 60. Rg8 {[%clk 0:00:02]}  Rb1 {[%clk 0:00:01]} 61. Ng5+ {[%clk 0:00:03]}  Kf2 {[%clk 0:00:02]} 62. Ne4+ {[%clk 0:00:03]}  Kf1 {[%clk 0:00:02]} 63. Nd2+ {[%clk 0:00:04]}  Kf2 {[%clk 0:00:01]} 64. Ne4+ {[%clk 0:00:04]}  Kg1 {[%clk 0:00:02]} 65. Ng5 {[%clk 0:00:04]}  R6b2 {[%clk 0:00:01]} 66. Nf3+ {[%clk 0:00:02]}  Kf2 {[%clk 0:00:01]} 67. Ng5 {[%clk 0:00:02]}  Rd1+ {[%clk 0:00:02]} 68. Kc4 {[%clk 0:00:02]}  f3 {[%clk 0:00:02]} 69. Ne4+ {[%clk 0:00:02]}  Ke3 {[%clk 0:00:02]} 70. Ng5 {[%clk 0:00:02]}  g1=Q {[%clk 0:00:02]} 71. Re8+ {[%clk 0:00:03]}  Kf2 {[%clk 0:00:02]} 72. Ne6 {[%clk 0:00:03]}  Kf1 {[%clk 0:00:02]} 73. Nc5 {[%clk 0:00:04]}  Qf2 {[%clk 0:00:03]} 74. Kd5 {[%clk 0:00:04]}  Qe2 {[%clk 0:00:03]} 75. Re4 {[%clk 0:00:05]}  Qxe4+ {[%clk 0:00:03]} 76. Nxe4 {[%clk 0:00:05]}  f2 {[%clk 0:00:03]} 77. Ng3+ {[%clk 0:00:06]}  Kg1 {[%clk 0:00:04]} 78. Ne4 {[%clk 0:00:07]}  f1=Q {[%clk 0:00:04]} 79. Nc5 {[%clk 0:00:07]}  Qg2+ {[%clk 0:00:05]} 80. Kc4 {[%clk 0:00:08]}  Rc2 {[%clk 0:00:05]} 81. Nb3 {[%clk 0:00:06]}  Rdc1 {[%clk 0:00:05]} 0-1

[Event "January 9 Late 2024"]
[Site "https://www.chess.com"]
[Date "2024.01.09"]
[Round "9"]
[White "Czerw, Dawid"]
[Black "Ibadov, Dashgyn"]
[Result "1-0"]
[Board "101"]
[TimeControl "180+1"]
[WhiteFideId "1145746"]
[BlackFideId "24107514"]
[WhiteElo "2460"]
[BlackElo "2613"]
[WhiteTeam "POL"]
[BlackTeam "FID"]
[WhiteClock "0:00:04"]
[BlackClock "0:00:00"]

1. e4 {[%clk 0:03:00]}  e6 {[%clk 0:03:00]} 2. b3 {[%clk 0:03:00]}  d5 {[%clk 0:03:00]} 3. Bb2 {[%clk 0:02:58]}  Nf6 {[%clk 0:02:59]} 4. e5 {[%clk 0:02:53]}  Nfd7 {[%clk 0:02:59]} 5. d4 {[%clk 0:02:53]}  c5 {[%clk 0:02:58]} 6. c3 {[%clk 0:02:53]}  Nc6 {[%clk 0:02:59]} 7. Nf3 {[%clk 0:02:53]}  cxd4 {[%clk 0:02:43]} 8. cxd4 {[%clk 0:02:52]}  Bb4+ {[%clk 0:02:44]} 9. Nbd2 {[%clk 0:02:52]}  f6 {[%clk 0:02:43]} 10. exf6 {[%clk 0:02:49]}  Nxf6 {[%clk 0:02:38]} 11. Bd3 {[%clk 0:02:49]}  O-O {[%clk 0:02:31]} 12. O-O {[%clk 0:02:47]}  Bd6 {[%clk 0:02:32]} 13. Qe2 {[%clk 0:02:42]}  Bd7 {[%clk 0:02:29]} 14. Rae1 {[%clk 0:02:42]}  Qc7 {[%clk 0:02:28]} 15. g3 {[%clk 0:02:38]}  Rae8 {[%clk 0:02:27]} 16. Ne5 {[%clk 0:02:33]}  Bc8 {[%clk 0:02:02]} 17. f4 {[%clk 0:02:32]}  Qb6 {[%clk 0:01:43]} 18. Ndf3 {[%clk 0:02:28]}  Bxe5 {[%clk 0:01:16]} 19. fxe5 {[%clk 0:02:24]}  Ne4 {[%clk 0:01:12]} 20. Bxe4 {[%clk 0:02:20]}  dxe4 {[%clk 0:01:13]} 21. Qxe4 {[%clk 0:02:20]}  Ne7 {[%clk 0:01:09]} 22. Ng5 {[%clk 0:02:11]}  Ng6 {[%clk 0:01:10]} 23. h4 {[%clk 0:01:58]}  Bd7 {[%clk 0:00:48]} 24. h5 {[%clk 0:01:50]}  Bc6 {[%clk 0:00:48]} 25. Qc2 {[%clk 0:01:41]}  Qd8 {[%clk 0:00:40]} 26. Nxh7 {[%clk 0:01:02]}  Qd5 {[%clk 0:00:37]} 27. Qh2 {[%clk 0:01:02]}  Kxh7 {[%clk 0:00:26]} 28. hxg6+ {[%clk 0:01:00]}  Kxg6 {[%clk 0:00:26]} 29. Qh3 {[%clk 0:00:46]}  Rf5 {[%clk 0:00:05]} 30. g4 {[%clk 0:00:30]}  Rxf1+ {[%clk 0:00:04]} 31. Rxf1 {[%clk 0:00:29]}  Rh8 {[%clk 0:00:04]} 32. Qd3+ {[%clk 0:00:24]}  Qe4 {[%clk 0:00:04]} 33. Qxe4+ {[%clk 0:00:20]}  Bxe4 {[%clk 0:00:05]} 34. Ba3 {[%clk 0:00:14]}  Rh1+ {[%clk 0:00:05]} 35. Kf2 {[%clk 0:00:14]}  Rh2+ {[%clk 0:00:05]} 36. Ke3 {[%clk 0:00:14]}  Bd5 {[%clk 0:00:05]} 37. Be7 {[%clk 0:00:10]}  Rxa2 {[%clk 0:00:05]} 38. Rc1 {[%clk 0:00:08]}  Bxb3 {[%clk 0:00:04]} 39. Rc7 {[%clk 0:00:08]}  Bd5 {[%clk 0:00:02]} 40. Bf8 {[%clk 0:00:08]}  Kg5 {[%clk 0:00:02]} 41. Rxg7+ {[%clk 0:00:08]}  Kh4 {[%clk 0:00:03]} 42. Be7+ {[%clk 0:00:07]}  Kg3 {[%clk 0:00:03]} 43. g5 {[%clk 0:00:08]}  Ra3+ {[%clk 0:00:02]} 44. Kd2 {[%clk 0:00:08]}  Kf4 {[%clk 0:00:02]} 45. g6 {[%clk 0:00:08]}  Ke4 {[%clk 0:00:00]} 46. Bxa3 {[%clk 0:00:04]} 1-0